bitfinex/quotes_BTCUSD_20230101
["timestamp","ask_amount","ask_price","bid_price","bid_amount"]
[1672578778322,4.52157409,16578.0,16577.0,0.07741893]
[1672578778811,4.18908494,16578.0,16577.0,0.07741893]
[1672578779025,4.76288639,16578.0,16577.0,0.07741893]
[1672578779273,5.6547348,16578.0,16577.0,0.07741893]
[1672578780020,5.1134225,16578.0,16577.0,0.07741893]
[1672578780500,4.22157409,16578.0,16577.0,0.07741893]
[1672578780746,4.52157409,16578.0,16577.0,0.07741893]
[1672578785886,4.52157409,16578.0,16577.0,0.07734721]
[1672578807626,5.50276411,16578.0,16577.0,0.07734721]
[1672578808132,4.52157409,16578.0,16577.0,0.07734721]
[1672578808384,4.49957409,16578.0,16577.0,0.06834721]
[1672578808596,4.55357409,16578.0,16577.0,0.07634721]
[1672578808838,4.49957409,16578.0,16577.0,0.06834721]
[1672578809332,4.56357409,16578.0,16577.0,0.07527538]
[1672578811473,0.5,16577.0,16574.0,0.54061514]
[1672578811707,1.25241578,16575.0,16574.0,0.54061514]
[1672578811950,3.80522018,16575.0,16574.0,0.54061514]
[1672578812167,3.81372018,16575.0,16574.0,0.49213315]
[1672578812653,3.94472018,16575.0,16574.0,0.49213315]
[1672578813178,2.7543044,16575.0,16574.0,0.49213315]
[1672578813426,3.74605507,16575.0,16574.0,0.49213315]
[1672578813691,3.61505507,16575.0,16574.0,0.49213315]
[1672578813940,3.74905507,16575.0,16574.0,0.49213315]
[1672578814184,3.61505507,16575.0,16574.0,0.49213315]
[1672578814427,3.74705507,16575.0,16574.0,0.49213315]
[1672578814902,3.74697006,16575.0,16574.0,0.49213315]
[1672578815168,3.7470854,16575.0,16574.0,0.49213315]
[1672578819891,3.25695718,16575.0,16574.0,0.49213315]
[1672578820168,3.55695718,16575.0,16574.0,0.49213315]
[1672578820416,3.25695718,16575.0,16574.0,0.49213315]
[1672578825769,3.55695718,16575.0,16574.0,0.49213315]
[1672578826523,4.42539098,16575.0,16574.0,0.49213315]
[1672578826737,4.99358628,16575.0,16574.0,0.49213315]
[1672578826989,4.51394581,16575.0,16574.0,0.49213315]
[1672578828426,4.51394581,16575.0,16574.0,0.49199995]
[1672578834403,3.62353003,16575.0,16574.0,0.49199995]
[1672578847062,3.92520003,16575.0,16574.0,0.19039995]
[1672578847325,3.62353003,16575.0,16574.0,0.19039995]
[1672578847566,3.64180098,16575.0,16574.0,0.19039995]
[1672578847809,3.66049576,16575.0,16574.0,0.19039995]
[1672578848775,3.52849576,16575.0,16574.0,0.19039995]
[1672578849275,3.66449576,16575.0,16574.0,0.19039995]
[1672578856072,4.21047426,16575.0,16574.0,0.19039995]
[1672578856314,3.64622481,16575.0,16574.0,0.19039995]
[1672578856569,3.90385132,16575.0,16574.0,0.19039995]
[1672578856839,3.89535132,16575.0,16574.0,0.19039995]
[1672578857802,4.19535132,16575.0,16574.0,0.19039995]
[1672578858544,4.20385132,16575.0,16574.0,0.19039995]
[1672578860047,4.06785132,16575.0,16574.0,0.19039995]
[1672578860259,4.20285132,16575.0,16574.0,0.19039995]
[1672578861011,4.06785132,16575.0,16574.0,0.19039995]
[1672578862202,4.20285132,16575.0,16574.0,0.19039995]
[1672578862707,5.09250083,16575.0,16574.0,0.19039995]
[1672578864473,4.20285132,16575.0,16574.0,0.19039995]
[1672578864716,5.09270152,16575.0,16574.0,0.19039995]
[1672578864963,4.20285132,16575.0,16574.0,0.19039995]
[1672578866981,5.09283771,16575.0,16574.0,0.19039995]
[1672578867248,3.79936767,16575.0,16574.0,0.19039995]
[1672578867497,2.28837228,16575.0,16574.0,0.19039995]
[1672578868980,2.15337228,16575.0,16574.0,0.19039995]
[1672578869466,2.71141966,16575.0,16574.0,0.19039995]
[1672578869707,2.70584099,16575.0,16574.0,0.19039995]
[1672578870192,3.13188837,16575.0,16574.0,0.19030132]
[1672578870435,2.71141966,16575.0,16574.0,0.19030132]
[1672578870694,2.711535,16575.0,16574.0,0.19030132]
[1672578873677,3.011535,16575.0,16574.0,0.19030132]
[1672578874430,3.90152139,16575.0,16574.0,0.19030132]
[1672578874675,4.97301063,16575.0,16574.0,0.19030132]
[1672578875404,4.84101063,16575.0,16574.0,0.19030132]
[1672578875648,4.97601063,16575.0,16574.0,0.19030132]
[1672578876145,4.41838412,16575.0,16574.0,0.19030132]
[1672578876907,5.01839095,16575.0,16574.0,0.19030132]
[1672578879135,4.41838412,16575.0,16574.0,0.19030132]
[1672578879358,4.88347365,16575.0,16574.0,0.19030132]
[1672578879886,4.41838412,16575.0,16574.0,0.19030132]
[1672578880138,4.93004923,16575.0,16574.0,0.19030132]
[1672578880633,4.9256815,16575.0,16574.0,0.19030132]
[1672578881123,4.41838412,16575.0,16574.0,0.19030132]
[1672578881391,3.52839773,16575.0,16574.0,0.19030132]
[1672578881642,4.13317793,16575.0,16574.0,0.19030132]
[1672578881897,5.02292817,16575.0,16574.0,0.19030132]
[1672578883149,4.13317793,16575.0,16574.0,0.19030132]
[1672578883399,5.02303529,16575.0,16574.0,0.19030132]
[1672578883654,5.02304088,16575.0,16574.0,0.19030132]
[1672578885160,4.13317793,16575.0,16574.0,0.19030132]
[1672578885410,5.02307132,16575.0,16574.0,0.19030132]
[1672578885667,4.13317793,16575.0,16574.0,0.19030132]
[1672578886162,5.02307889,16575.0,16574.0,0.19030132]
[1672578886411,4.13317793,16575.0,16574.0,0.19030132]
[1672578895272,4.13317793,16575.0,16574.0,0.19021361]
[1672578896749,3.52839773,16575.0,16574.0,0.19021361]
[1672578896994,3.37871361,16575.0,16574.0,0.19021361]
[1672578898723,3.99972261,16575.0,16574.0,0.19021361]
[1672578899217,3.52839773,16575.0,16574.0,0.19021361]
[1672578899739,4.10022012,16575.0,16574.0,0.19021361]
[1672578900510,3.80022012,16575.0,16574.0,0.19021361]
[1672578901006,4.10022012,16575.0,16574.0,0.19021361]
[1672578901962,4.99088068,16575.0,16574.0,0.19021361]
[1672578902755,4.10022012,16575.0,16574.0,0.19021361]
[1672578903737,4.6908602,16575.0,16574.0,0.19021361]
[1672578904728,4.9908602,16575.0,16574.0,0.19021361]
[1672578904982,4.6908602,16575.0,16574.0,0.19021361]
[1672578905223,4.9908602,16575.0,16574.0,0.19021361]
[1672578905933,4.9908079,16575.0,16574.0,0.19021361]
[1672578906652,4.6908079,16575.0,16574.0,0.19021361]
[1672578909911,4.5558079,16575.0,16574.0,0.19021361]
[1672578910400,4.6898079,16575.0,16574.0,0.19021361]
[1672578910645,4.5558079,16575.0,16574.0,0.19021361]
[1672578910894,4.41598551,16575.0,16574.0,0.19021361]
[1672578911131,3.52539773,16575.0,16574.0,0.19021361]
[1672578912122,3.92628365,16575.0,16574.0,0.19021361]
[1672578912883,4.06128365,16575.0,16574.0,0.19021361]
[1672578916622,4.06128365,16575.0,16574.0,0.19009821]
[1672578916864,4.13171573,16575.0,16574.0,0.19009821]
[1672578918545,3.99671573,16575.0,16574.0,0.19009821]
[1672578918781,4.13171573,16575.0,16574.0,0.19009821]
[1672578920889,4.58942164,16575.0,16574.0,0.19009821]
[1672578921647,4.45442164,16575.0,16574.0,0.19009821]
[1672578921887,4.74074217,16575.0,16574.0,0.19009821]
[1672578922139,3.99671573,16575.0,16574.0,0.19009821]
[1672578922381,4.13171573,16575.0,16574.0,0.19009821]
[1672578922628,4.644766,16575.0,16574.0,0.19009821]
[1672578922870,4.13171573,16575.0,16574.0,0.19009821]
[1672578923854,4.59268013,16575.0,16574.0,0.19009821]
[1672578925066,4.13171573,16575.0,16574.0,0.19009821]
[1672578925835,4.60085578,16575.0,16574.0,0.19009821]
[1672578926099,4.13171573,16575.0,16574.0,0.19009821]
[1672578926348,4.69180725,16575.0,16574.0,0.19009821]
[1672578927860,4.13171573,16575.0,16574.0,0.19009821]
[1672578928883,4.61619247,16575.0,16574.0,0.19009821]
[1672578929414,4.13171573,16575.0,16574.0,0.19009821]
[1672578933050,4.70847849,16575.0,16574.0,0.19009821]
[1672578933294,4.13171573,16575.0,16574.0,0.19009821]
[1672578933803,4.59473872,16575.0,16574.0,0.19009821]
[1672578934020,4.71320697,16575.0,16574.0,0.19009821]
[1672578934268,4.13171573,16575.0,16574.0,0.19009821]
[1672578935382,4.67755042,16575.0,16574.0,0.19009821]
[1672578939899,4.67755042,16575.0,16574.0,0.19000561]
[1672578940423,4.13171573,16575.0,16574.0,0.19000561]
[1672578940927,3.51070673,16575.0,16574.0,0.19000561]
[1672578941946,3.06022649,16575.0,16574.0,0.19000561]
[1672578942432,3.51012479,16575.0,16574.0,0.19000561]
[1672578942682,4.26070758,16575.0,16574.0,0.19000561]
[1672578944488,3.68123549,16575.0,16574.0,0.19000561]
[1672578945847,4.24413333,16575.0,16574.0,0.19000561]
[1672578946095,4.72887476,16575.0,16574.0,0.19000561]
[1672578947837,4.60980004,16575.0,16574.0,0.19000561]
[1672578948087,4.16597692,16575.0,16574.0,0.19000561]
[1672578950810,4.65584687,16575.0,16574.0,0.19000561]
[1672578951055,4.78471644,16575.0,16574.0,0.19000561]
[1672578951311,4.16597692,16575.0,16574.0,0.19000561]
[1672578951560,4.74843384,16575.0,16574.0,0.19000561]
[1672578952583,4.16597692,16575.0,16574.0,0.19000561]
[1672578953055,4.60726661,16575.0,16574.0,0.19000561]
[1672578955855,4.16597692,16575.0,16574.0,0.19000561]
[1672578956108,4.77825276,16575.0,16574.0,0.19000561]
[1672578958103,4.16597692,16575.0,16574.0,0.19000561]
[1672578958594,4.71014178,16575.0,16574.0,0.19000561]
[1672578962622,4.71014178,16575.0,16574.0,0.18990305]
[1672578970313,4.16597692,16575.0,16574.0,0.18990305]
[1672578971023,4.6309458,16575.0,16574.0,0.18990305]
[1672578971515,4.16597692,16575.0,16574.0,0.18990305]
[1672578973071,4.72975019,16575.0,16574.0,0.18990305]
[1672578974049,4.16597692,16575.0,16574.0,0.18990305]
[1672578975478,5.14716694,16575.0,16574.0,0.18990305]
[1672578976470,4.16597692,16575.0,16574.0,0.18990305]
[1672578976718,4.03097692,16575.0,16574.0,0.18990305]
[1672578976970,4.16597692,16575.0,16574.0,0.18990305]
[1672578977695,5.14716694,16575.0,16574.0,0.18990305]
[1672578979684,4.03097692,16575.0,16574.0,0.18990305]
[1672578979929,4.16697692,16575.0,16574.0,0.18990305]
[1672578980180,4.03097692,16575.0,16574.0,0.18990305]
[1672578980425,4.16597692,16575.0,16574.0,0.18990305]
[1672578981170,5.14716694,16575.0,16574.0,0.18990305]
[1672578981665,4.16597692,16575.0,16574.0,0.18990305]
[1672578983215,5.14716694,16575.0,16574.0,0.18990305]
[1672578985108,4.16597692,16575.0,16574.0,0.18990305]
[1672578985852,5.14716694,16575.0,16574.0,0.18990305]
[1672578986102,5.01216694,16575.0,16574.0,0.18990305]
[1672578986608,5.14816694,16575.0,16574.0,0.1897989]
[1672578989109,4.16697692,16575.0,16574.0,0.1897989]
[1672578989363,4.03097692,16575.0,16574.0,0.1897989]
[1672578989851,5.14716694,16575.0,16574.0,0.1897989]
[1672578990119,4.16597692,16575.0,16574.0,0.1897989]
[1672578990595,5.14716694,16575.0,16574.0,0.1897989]
[1672578991853,4.16597692,16575.0,16574.0,0.1897989]
[1672578994306,5.14716694,16575.0,16574.0,0.1897989]
[1672578994524,4.16597692,16575.0,16574.0,0.1897989]
[1672578998494,4.16589608,16575.0,16574.0,0.1897989]
[1672579004627,5.1470861,16575.0,16574.0,0.1897989]
[1672579004884,4.16589608,16575.0,16574.0,0.1897989]
[1672579005391,5.1470861,16575.0,16574.0,0.1897989]
[1672579006137,4.16589608,16575.0,16574.0,0.1897989]
[1672579006393,5.1470861,16575.0,16574.0,0.1897989]
[1672579015920,4.16589608,16575.0,16574.0,0.1897989]
[1672579016437,4.03089608,16575.0,16574.0,0.1897989]
[1672579016680,4.16689608,16575.0,16574.0,0.1897989]
[1672579017482,4.03089608,16575.0,16574.0,0.1897989]
[1672579017716,4.16689608,16575.0,16574.0,0.1897989]
[1672579017986,4.18516703,16575.0,16574.0,0.1897989]
[1672579019464,4.18516703,16575.0,16574.0,9e-07]
[1672579019710,4.18516703,16575.0,16571.0,0.54064467]
[1672579019711,0.36183415,16572.0,16571.0,0.54064467]
[1672579019949,3.76749987,16572.0,16571.0,0.04964467]
[1672579020186,3.52743985,16572.0,16569.0,0.00032785]
[1672579020433,0.36183415,16570.0,16569.0,0.00032785]
[1672579020675,0.99134315,16570.0,16569.0,0.00032785]
[1672579020926,3.04089688,16570.0,16569.0,0.00032785]
[1672579021396,3.58951073,16570.0,16569.0,0.00032785]
[1672579021959,3.88951073,16570.0,16569.0,0.00032785]
[1672579022457,4.02351073,16570.0,16569.0,0.00032785]
[1672579022702,3.72351073,16570.0,16569.0,0.00032785]
[1672579023458,3.72351073,16570.0,16568.0,0.0528525]
[1672579023459,1.36617566,16569.0,16568.0,0.0528525]
[1672579023719,3.20275666,16569.0,16568.0,0.0528525]
[1672579023963,2.58174766,16569.0,16568.0,0.00512171]
[1672579024705,3.20275666,16569.0,16568.0,0.00512171]
[1672579024970,2.58174766,16569.0,16568.0,0.00512171]
[1672579025720,2.98418933,16569.0,16568.0,0.00512171]
[1672579027951,3.60519833,16569.0,16568.0,0.00512171]
[1672579028196,2.98418933,16569.0,16568.0,0.00512171]
[1672579029711,2.98418933,16569.0,16568.0,0.00573103]
[1672579029958,2.98418933,16569.0,16568.0,0.00512171]
[1672579032154,2.92418933,16569.0,16568.0,0.00512171]
[1672579032399,3.05618933,16569.0,16568.0,0.00512171]
[1672579032655,2.92418933,16569.0,16568.0,0.00512171]
[1672579032917,3.05618933,16569.0,16568.0,0.00512171]
[1672579033168,3.67719833,16569.0,16568.0,0.00512171]
[1672579033419,3.05618933,16569.0,16568.0,0.00512171]
[1672579033666,2.21374766,16569.0,16568.0,0.00512171]
[1672579034665,2.83475666,16569.0,16568.0,0.00512171]
[1672579035432,2.21374766,16569.0,16568.0,0.00512171]
[1672579036905,2.83475666,16569.0,16568.0,0.00512171]
[1672579037944,2.21374766,16569.0,16568.0,0.00512171]
[1672579038194,2.32046518,16569.0,16568.0,0.00512171]
[1672579038699,2.21374766,16569.0,16568.0,0.00512171]
[1672579039169,2.83475666,16569.0,16568.0,0.00512171]
[1672579039914,2.21374766,16569.0,16568.0,0.00512171]
[1672579040159,2.21374766,16569.0,16568.0,0.00573103]
[1672579040398,2.21374766,16569.0,16568.0,0.00512171]
[1672579045132,2.21374766,16569.0,16568.0,0.00501703]
[1672579048534,2.28686202,16569.0,16568.0,0.00501703]
[1672579048786,2.21374766,16569.0,16568.0,0.00501703]
[1672579054690,2.63956336,16569.0,16568.0,0.00501703]
[1672579054933,3.26057236,16569.0,16568.0,0.00501703]
[1672579056903,3.56057236,16569.0,16568.0,0.00501703]
[1672579057153,4.06606055,16569.0,16568.0,0.00501703]
[1672579057396,3.93406055,16569.0,16568.0,0.00501703]
[1672579058175,3.50824485,16569.0,16568.0,0.00501703]
[1672579058429,3.93406055,16569.0,16568.0,0.00501703]
[1672579059411,4.06606055,16569.0,16568.0,0.00501703]
[1672579060711,3.34024485,16569.0,16568.0,0.00501703]
[1672579060947,3.76606055,16569.0,16568.0,0.00501703]
[1672579061165,4.06606055,16569.0,16568.0,0.00501703]
[1672579061414,4.9567547,16569.0,16568.0,0.00501703]
[1672579062397,4.45241319,16569.0,16568.0,0.00501703]
[1672579062634,4.03714445,16569.0,16568.0,0.00501703]
[1672579062883,3.56471904,16569.0,16568.0,0.00501703]
[1672579063623,3.42971904,16569.0,16568.0,0.00501703]
[1672579063877,3.56471904,16569.0,16568.0,0.00501703]
[1672579065381,4.45502512,16569.0,16568.0,0.00501703]
[1672579066866,3.58164625,16569.0,16568.0,0.00501703]
[1672579067354,4.47165975,16569.0,16568.0,0.00501703]
[1672579067851,3.58164625,16569.0,16568.0,0.00501703]
[1672579068866,3.58164625,16569.0,16568.0,0.00495224]
[1672579071122,3.44664625,16569.0,16568.0,0.00495224]
[1672579072118,3.58164625,16569.0,16568.0,0.00495224]
[1672579072364,3.44664625,16569.0,16568.0,0.00495224]
[1672579072818,3.58164625,16569.0,16568.0,0.00495224]
[1672579073366,3.44664625,16569.0,16568.0,0.00495224]
[1672579073861,3.58164625,16569.0,16568.0,0.00495224]
[1672579076856,3.44664625,16569.0,16568.0,0.00495224]
[1672579077101,3.58164625,16569.0,16568.0,0.00495224]
[1672579078349,4.47066864,16569.0,16568.0,0.00495224]
[1672579079093,4.33566864,16569.0,16568.0,0.00495224]
[1672579079337,4.47066864,16569.0,16568.0,0.00495224]
[1672579079609,4.33566864,16569.0,16568.0,0.00495224]
[1672579079859,4.47066864,16569.0,16568.0,0.00495224]
[1672579080104,4.33566864,16569.0,16568.0,0.00495224]
[1672579080861,4.47066864,16569.0,16568.0,0.00495224]
[1672579081844,4.33566864,16569.0,16568.0,0.00495224]
[1672579082087,4.47066864,16569.0,16568.0,0.00495224]
[1672579082333,4.33566864,16569.0,16568.0,0.00495224]
[1672579082582,4.47066864,16569.0,16568.0,0.00495224]
[1672579082840,4.33566864,16569.0,16568.0,0.00495224]
[1672579083600,4.33560005,16569.0,16568.0,0.00495224]
[1672579084641,4.47060005,16569.0,16568.0,0.00495224]
[1672579084899,4.33560005,16569.0,16568.0,0.00495224]
[1672579085156,4.47060005,16569.0,16568.0,0.00495224]
[1672579085397,4.33560005,16569.0,16568.0,0.00495224]
[1672579085656,5.09124589,16569.0,16568.0,0.00495224]
[1672579085901,4.95624589,16569.0,16568.0,0.00495224]
[1672579086147,5.09124589,16569.0,16568.0,0.00495224]
[1672579086404,4.20229209,16569.0,16568.0,0.00495224]
[1672579086657,3.5618039,16569.0,16568.0,0.00495224]
[1672579086910,2.9624882,16569.0,16568.0,0.00495224]
[1672579087158,1.72083336,16569.0,16568.0,0.71890354]
[1672579087889,2.33058696,16569.0,16568.0,0.71890354]
[1672579088389,1.59205096,16569.0,16568.0,0.71890354]
[1672579088649,1.72305096,16569.0,16568.0,0.71990354]
[1672579088901,1.59205096,16569.0,16568.0,0.53110354]
[1672579089635,1.06579736,16569.0,16568.0,0.53310354]
[1672579090398,1.28356093,16569.0,16568.0,0.53310354]
[1672579090901,1.06579736,16569.0,16568.0,0.533013]
[1672579091678,1.0659127,16569.0,16568.0,0.533013]
[1672579091932,1.06579736,16569.0,16568.0,0.533013]
[1672579092434,1.67562949,16569.0,16568.0,0.533013]
[1672579092715,1.67574483,16569.0,16568.0,0.533013]
[1672579093230,1.06579736,16569.0,16568.0,0.0068617]
[1672579093474,1.58362694,16569.0,16568.0,0.0068617]
[1672579094250,2.19350484,16569.0,16568.0,0.0068617]
[1672579094772,2.19362018,16569.0,16568.0,0.0068617]
[1672579096233,2.19360996,16569.0,16568.0,0.0068617]
[1672579096499,1.58374228,16569.0,16568.0,0.0068617]
[1672579097225,1.80246981,16569.0,16568.0,0.0068617]
[1672579098474,1.58374228,16569.0,16568.0,0.0068617]
[1672579099046,1.58362694,16569.0,16568.0,0.0068617]
[1672579099574,2.19347736,16569.0,16568.0,0.0068617]
[1672579100100,1.58362694,16569.0,16568.0,0.0068617]
[1672579100588,2.00944264,16569.0,16568.0,0.0068617]
[1672579100844,2.9346294,16569.0,16568.0,0.0068617]
[1672579102639,2.93474474,16569.0,16568.0,0.0068617]
[1672579103149,2.50892904,16569.0,16568.0,0.0068617]
[1672579103428,2.93474474,16569.0,16568.0,0.0068617]
[1672579104375,3.55575374,16569.0,16568.0,0.0068617]
[1672579105881,3.1298227,16569.0,16568.0,0.0068617]
[1672579106125,2.50892904,16569.0,16568.0,0.0068617]
[1672579107603,2.93474474,16569.0,16568.0,0.0068617]
[1672579107848,3.85575374,16569.0,16568.0,0.0068617]
[1672579110601,3.23474474,16569.0,16568.0,0.0068617]
[1672579111364,3.85575374,16569.0,16568.0,0.0068617]
[1672579112930,3.33792416,16569.0,16568.0,0.0068617]
[1672579113935,4.22687796,16569.0,16568.0,0.0068617]
[1672579115956,4.22687796,16569.0,16568.0,0.00674627]
[1672579119250,3.33792416,16569.0,16568.0,0.00674627]
[1672579121003,3.33792416,16569.0,16568.0,0.00649597]
[1672579124549,4.22780958,16569.0,16568.0,0.00649597]
[1672579126249,4.15280958,16569.0,16568.0,0.00449597]
[1672579126488,4.21980958,16569.0,16568.0,0.00549597]
[1672579130767,3.32992416,16569.0,16568.0,0.00549597]
[1672579131772,3.26292416,16569.0,16568.0,0.00449597]
[1672579132277,3.39792416,16569.0,16568.0,0.00449597]
[1672579133024,4.28773735,16569.0,16568.0,0.00449597]
[1672579133267,4.75804119,16569.0,16568.0,0.00449597]
[1672579133521,4.28773735,16569.0,16568.0,0.00449597]
[1672579133771,4.28781,16569.0,16568.0,0.00449597]
[1672579134024,4.01700008,16569.0,16568.0,0.00449597]
[1672579134277,4.30335243,16569.0,16568.0,0.00449597]
[1672579134513,3.68427651,16569.0,16568.0,0.00449597]
[1672579134765,4.28781251,16569.0,16568.0,0.00449597]
[1672579134980,4.28780975,16569.0,16568.0,0.00449597]
[1672579135246,4.28781153,16569.0,16568.0,0.00449597]
[1672579135457,4.89920014,16569.0,16568.0,0.00449597]
[1672579135670,4.00931277,16569.0,16568.0,0.00449597]
[1672579136226,3.39792416,16569.0,16568.0,0.00449597]
[1672579141665,3.39792416,16569.0,16568.0,0.0044026]
[1672579145184,3.39792416,16569.0,16564.0,0.9988764]
[1672579145185,0.00139246,16567.0,16564.0,0.04803549]
[1672579145450,1.25217072,16565.0,16564.0,0.04803549]
[1672579145699,1.25217072,16565.0,16564.0,0.00015]
[1672579145700,2.86458287,16565.0,16564.0,0.00015]
[1672579145940,2.62452285,16565.0,16564.0,0.00015]
[1672579146443,2.00351385,16565.0,16564.0,0.00015]
[1672579146691,1.57769815,16565.0,16564.0,0.00015]
[1672579147207,1.57769815,16565.0,16563.0,0.56391878]
[1672579147491,0.98084658,16564.0,16563.0,0.56391878]
[1672579147972,0.98084658,16564.0,16563.0,0.55891878]
[1672579148732,1.11484658,16564.0,16563.0,0.55891878]
[1672579148973,1.11496192,16564.0,16563.0,0.55891878]
[1672579149739,0.50444949,16564.0,16563.0,0.55891878]
[1672579149979,1.11499658,16564.0,16563.0,0.55891878]
[1672579150195,1.71871458,16564.0,16563.0,0.55891878]
[1672579151698,1.71859924,16564.0,16563.0,0.55891878]
[1672579151941,1.10805215,16564.0,16563.0,0.55891878]
[1672579152932,1.10816749,16564.0,16563.0,0.55891878]
[1672579154427,1.10805215,16564.0,16563.0,0.55891878]
[1672579155206,1.10816749,16564.0,16563.0,0.55891878]
[1672579155451,1.10805215,16564.0,16563.0,0.55891878]
[1672579155696,1.71867591,16564.0,16563.0,0.55891878]
[1672579156421,1.71879125,16564.0,16563.0,0.55891878]
[1672579158677,1.71867591,16564.0,16563.0,0.55891878]
[1672579159328,1.71867591,16564.0,16562.0,0.47506158]
[1672579159538,2.14460695,16564.0,16562.0,0.47506158]
[1672579160286,0.61062376,16563.0,16562.0,0.47506158]
[1672579161002,0.61062376,16563.0,16562.0,0.01546158]
[1672579161717,2.61524389,16564.0,16562.0,0.01546158]
[1672579161977,0.132,16563.0,16562.0,0.5876532]
[1672579162928,1.58559485,16564.0,16562.0,0.5876532]
[1672579163441,1.71959485,16564.0,16562.0,0.5876532]
[1672579163686,1.11495791,16564.0,16562.0,0.5876532]
[1672579164979,1.10645791,16564.0,16563.0,0.61862122]
[1672579165465,0.134,16564.0,16563.0,0.61862122]
[1672579165950,0.61062376,16564.0,16563.0,0.61862122]
[1672579166202,0.74462376,16564.0,16563.0,0.61862122]
[1672579167975,0.134,16564.0,16563.0,0.61862122]
[1672579168228,0.74462376,16564.0,16563.0,0.61862122]
[1672579168711,0.134,16564.0,16563.0,0.61862122]
[1672579171013,0.67687736,16564.0,16563.0,0.61862122]
[1672579171256,0.134,16564.0,16563.0,0.61862122]
[1672579172246,0.134,16564.0,16563.0,0.61850501]
[1672579174246,0.13388918,16564.0,16563.0,0.61850501]
[1672579176968,0.74451294,16564.0,16563.0,0.61850501]
[1672579177222,0.13388918,16564.0,16563.0,0.61850501]
[1672579179260,0.6767478,16564.0,16563.0,0.61850501]
[1672579179975,0.13400452,16564.0,16563.0,0.61850501]
[1672579180238,0.13388918,16564.0,16563.0,0.61850501]
[1672579180731,0.67671756,16564.0,16563.0,0.61850501]
[1672579190904,0.6768329,16564.0,16563.0,0.61850501]
[1672579191150,0.67671756,16564.0,16563.0,0.61850501]
[1672579194596,0.13388918,16564.0,16563.0,0.61850501]
[1672579196353,0.13388918,16564.0,16563.0,1.11838578]
[1672579196600,0.13388918,16564.0,16563.0,1.72214078]
[1672579200074,0.67671756,16564.0,16563.0,1.72214078]
[1672579200325,0.13388918,16564.0,16563.0,1.72214078]
[1672579200799,0.13388918,16564.0,16563.0,1.22214078]
[1672579201049,0.67671756,16564.0,16563.0,1.22214078]
[1672579208026,0.68936656,16564.0,16563.0,1.22214078]
[1672579216759,0.68936656,16564.0,16563.0,1.22202331]
[1672579222528,0.14653818,16564.0,16563.0,1.22202331]
[1672579227310,0.68986722,16564.0,16563.0,1.22202331]
[1672579229740,0.67721822,16564.0,16563.0,1.22202331]
[1672579230508,0.67733356,16564.0,16563.0,1.22202331]
[1672579230841,0.13388918,16564.0,16563.0,1.22202331]
[1672579231766,0.67721839,16564.0,16563.0,1.22202331]
[1672579233269,0.67723138,16564.0,16563.0,1.22202331]
[1672579239696,0.67723138,16564.0,16563.0,1.22195439]
[1672579243721,0.67734672,16564.0,16563.0,1.22195439]
[1672579243991,0.13388918,16564.0,16563.0,1.22195439]
[1672579244238,0.67729324,16564.0,16563.0,1.22195439]
[1672579244470,0.13388918,16564.0,16563.0,1.22195439]
[1672579244913,0.67730493,16564.0,16563.0,1.22195439]
[1672579246652,0.67742027,16564.0,16563.0,1.22195439]
[1672579246913,0.67742027,16564.0,16563.0,0.61819939]
[1672579247172,0.67730493,16564.0,16563.0,0.61819939]
[1672579247676,0.13400452,16564.0,16563.0,0.61819939]
[1672579247921,0.13388918,16564.0,16563.0,0.61819939]
[1672579248670,0.13400452,16564.0,16563.0,0.61819939]
[1672579248909,0.13388918,16564.0,16563.0,0.61819939]
[1672579249168,0.67729815,16564.0,16563.0,0.61819939]
[1672579252936,0.13388918,16564.0,16563.0,0.61819939]
[1672579253421,0.13388918,16564.0,16563.0,1.22195439]
[1672579253422,0.67729815,16564.0,16563.0,1.22195439]
[1672579254184,0.13388918,16564.0,16563.0,1.22195439]
[1672579260155,0.13388918,16564.0,16563.0,1.22187865]
[1672579262638,0.13388918,16564.0,16563.0,1.64769435]
[1672579264279,0.58647864,16564.0,16563.0,1.64769435]
[1672579264789,0.13388918,16564.0,16563.0,1.64769435]
[1672579271995,1.02785629,16565.0,16563.0,1.64769435]
[1672579273353,0.135,16564.0,16563.0,1.64769435]
[1672579273597,1.02785629,16565.0,16563.0,1.22187865]
[1672579273820,1.02785629,16565.0,16564.0,0.55730178]
[1672579275549,1.03885629,16565.0,16564.0,0.55730178]
[1672579276042,0.55440897,16565.0,16564.0,0.55730178]
[1672579279009,0.55434569,16565.0,16564.0,0.55730178]
[1672579279764,0.55434569,16565.0,16564.0,0.55230178]
[1672579279993,0.54334569,16565.0,16564.0,0.55230178]
[1672579280554,0.55434569,16565.0,16564.0,0.55230178]
[1672579282956,0.01111534,16565.0,16563.0,1.0295707]
[1672579283204,0.01111534,16565.0,16563.0,1.20730486]
[1672579283418,0.011,16565.0,16563.0,1.20730486]
[1672579283943,1.15945326,16566.0,16563.0,1.63312056]
[1672579284189,0.019,16565.0,16563.0,1.63312056]
[1672579284423,0.64567704,16565.0,16563.0,1.20730486]
[1672579284664,0.64567704,16565.0,16563.0,1.63312056]
[1672579284903,1.12667704,16565.0,16563.0,1.62812056]
[1672579285142,0.54324834,16564.0,16563.0,1.62812056]
[1672579285378,0.54324834,16564.0,16563.0,1.20230486]
[1672579286328,0.54324834,16564.0,16563.0,1.62812056]
[1672579287314,0.56024834,16564.0,16563.0,1.62812056]
[1672579288125,0.017,16564.0,16563.0,1.62812056]
[1672579288394,0.017,16564.0,16563.0,1.20230486]
[1672579288395,0.56024834,16564.0,16563.0,1.20230486]
[1672579288656,0.56024834,16564.0,16563.0,1.62812056]
[1672579289414,0.55424834,16564.0,16563.0,1.62812056]
[1672579289870,0.54324834,16564.0,16563.0,1.62812056]
[1672579290328,0.56024834,16564.0,16563.0,1.62812056]
[1672579290808,0.56024834,16564.0,16563.0,1.20230486]
[1672579293815,0.56024834,16564.0,16563.0,1.62812056]
[1672579294556,0.56024834,16564.0,16563.0,1.20230486]
[1672579298559,0.54324834,16564.0,16563.0,1.20230486]
[1672579298778,0.55424834,16564.0,16563.0,1.20230486]
[1672579298994,0.54324834,16564.0,16563.0,1.20230486]
[1672579300289,0.56024834,16564.0,16563.0,1.20230486]
[1672579300598,0.56024834,16564.0,16563.0,1.62812056]
[1672579300770,0.56024834,16564.0,16563.0,1.20230486]
[1672579303450,0.56036368,16564.0,16563.0,0.598755]
[1672579303970,0.56024834,16564.0,16563.0,0.598755]
[1672579308965,0.56024834,16564.0,16563.0,0.59865688]
[1672579309480,0.56024834,16564.0,16562.0,1.28711796]
[1672579309724,0.56024834,16564.0,16562.0,1.71293366]
[1672579310414,1.15697813,16564.0,16562.0,1.71293366]
[1672579310654,1.13997813,16564.0,16562.0,1.71293366]
[1672579310873,1.15497813,16564.0,16562.0,1.71293366]
[1672579315599,1.15497813,16564.0,16563.0,0.46945582]
[1672579315819,0.55824834,16564.0,16563.0,0.96945582]
[1672579316571,0.55824834,16564.0,16563.0,0.46945582]
[1672579316816,0.54324834,16564.0,16563.0,0.46945582]
[1672579317305,0.56024834,16564.0,16563.0,0.46945582]
[1672579323500,0.54324834,16564.0,16563.0,0.46945582]
[1672579324511,0.56024834,16564.0,16563.0,0.46945582]